[Event "*** Titled Tuesday Blitz"]
[Site "Chess.com"]
[Date "2020.05.12"]
[Round "1"]
[White "AniJak"]
[Black "AndrewMaco"]
[Result "1-0"]
[WhiteElo "2238"]
[BlackElo "2539"]
[TimeControl "180+1"]
[EndTime "10:07:54 PDT"]
[Termination "AniJak won by checkmate"]

1. e4 {[%clk 0:03:00.9]} 1... c5 {[%clk 0:02:57.9]} 2. Nc3 {[%clk 0:02:59.1]}
2... d6 {[%clk 0:02:53.4]} 3. g3 {[%clk 0:02:59]} 3... Nc6 {[%clk 0:02:51.3]} 4.
Bg2 {[%clk 0:02:59]} 4... g6 {[%clk 0:02:50.6]} 5. d3 {[%clk 0:02:58.8]} 5...
Bg7 {[%clk 0:02:50]} 6. Nh3 {[%clk 0:02:58.1]} 6... e5 {[%clk 0:02:40.6]} 7. O-O
{[%clk 0:02:57.3]} 7... Nge7 {[%clk 0:02:40.5]} 8. f4 {[%clk 0:02:57.3]} 8...
O-O {[%clk 0:02:40.3]} 9. f5 {[%clk 0:02:50.1]} 9... gxf5 {[%clk 0:02:36.6]} 10.
Qh5 {[%clk 0:02:45.3]} 10... f6 {[%clk 0:02:11.5]} 11. exf5 {[%clk 0:02:42.9]}
11... Qe8 {[%clk 0:02:11.8]} 12. Qxe8 {[%clk 0:02:23.6]} 12... Rxe8 {[%clk
0:02:11.7]} 13. g4 {[%clk 0:02:23.4]} 13... Rd8 {[%clk 0:02:05.1]} 14. Nd5
{[%clk 0:02:21.1]} 14... Nxd5 {[%clk 0:01:59.3]} 15. Bxd5+ {[%clk 0:02:20]}
15... Kf8 {[%clk 0:01:59.8]} 16. c3 {[%clk 0:02:14]} 16... Ne7 {[%clk
0:01:59.5]} 17. Bg2 {[%clk 0:02:05.9]} 17... d5 {[%clk 0:01:59.6]} 18. Be3
{[%clk 0:01:56.5]} 18... b6 {[%clk 0:01:59.5]} 19. d4 {[%clk 0:01:42]} 19...
cxd4 {[%clk 0:01:40.1]} 20. cxd4 {[%clk 0:01:42]} 20... h5 {[%clk 0:01:39.2]}
21. dxe5 {[%clk 0:01:28.7]} 21... hxg4 {[%clk 0:01:39.1]} 22. exf6 {[%clk
0:01:27.7]} 22... Bxf6 {[%clk 0:01:40]} 23. Nf4 {[%clk 0:01:16.7]} 23... Nxf5
{[%clk 0:01:39.5]} 24. Nxd5 {[%clk 0:01:09]} 24... Bxb2 {[%clk 0:01:26.5]} 25.
Rab1 {[%clk 0:01:00.7]} 25... Be5 {[%clk 0:01:21.5]} 26. Bg5 {[%clk 0:00:31.3]}
26... Rd6 {[%clk 0:01:07.4]} 27. Ne7 {[%clk 0:00:30.6]} 27... Bd4+ {[%clk
0:00:41.6]} 28. Kh1 {[%clk 0:00:30.1]} 28... Rb8 {[%clk 0:00:26.7]} 29. Nxf5
{[%clk 0:00:28.4]} 29... Bxf5 {[%clk 0:00:23.7]} 30. Rxf5+ {[%clk 0:00:29.3]}
30... Kg7 {[%clk 0:00:23.3]} 31. Rbf1 {[%clk 0:00:28]} 31... Re8 {[%clk
0:00:21.9]} 32. Rf7+ {[%clk 0:00:26.5]} 32... Kg6 {[%clk 0:00:22]} 33. Be7
{[%clk 0:00:25.1]} 33... Re6 {[%clk 0:00:21.3]} 34. Bb4 {[%clk 0:00:24.2]} 34...
Re2 {[%clk 0:00:20.5]} 35. R7f4 {[%clk 0:00:20.3]} 35... Be5 {[%clk 0:00:17]}
36. Rxg4+ {[%clk 0:00:20.2]} 36... Kh5 {[%clk 0:00:17.3]} 37. Rc4 {[%clk
0:00:12.2]} 37... Kh6 {[%clk 0:00:15.5]} 38. Rc6+ {[%clk 0:00:09.1]} 38... Kh7
{[%clk 0:00:15.2]} 39. h3 {[%clk 0:00:07]} 39... Kh8 {[%clk 0:00:14.2]} 40. Rc4
{[%clk 0:00:03.7]} 40... Rxa2 {[%clk 0:00:05.4]} 41. Rh4+ {[%clk 0:00:04.1]}
41... Kg7 {[%clk 0:00:05.9]} 42. Be1 {[%clk 0:00:02.7]} 42... Rc2 {[%clk
0:00:04.2]} 43. Rg4+ {[%clk 0:00:02.9]} 43... Kh6 {[%clk 0:00:04.4]} 44. Bh4
{[%clk 0:00:03.2]} 44... Rc6 {[%clk 0:00:02.2]} 45. Bg5+ {[%clk 0:00:03.3]}
45... Kh5 {[%clk 0:00:02.3]} 46. Bxc6 {[%clk 0:00:03.3]} 46... Bd4 {[%clk
0:00:02.2]} 47. Bxe8# {[%clk 0:00:03.3]} 1-0

[Event "*** Titled Tuesday Blitz"]
[Site "Chess.com"]
[Date "2020.05.12"]
[Round "1"]
[White "A-Fier"]
[Black "LogoCzar"]
[Result "0-1"]
[WhiteElo "2759"]
[BlackElo "2427"]
[TimeControl "180+1"]
[EndTime "10:07:56 PDT"]
[Termination "LogoCzar won by resignation"]

1. d4 {[%clk 0:02:56]} 1... d5 {[%clk 0:02:05.5]} 2. c4 {[%clk 0:02:55.2]} 2...
c6 {[%clk 0:02:04.5]} 3. cxd5 {[%clk 0:02:55.5]} 3... cxd5 {[%clk 0:02:03.9]} 4.
Bf4 {[%clk 0:02:56.1]} 4... Nc6 {[%clk 0:02:03.2]} 5. e3 {[%clk 0:02:55.8]} 5...
Nf6 {[%clk 0:02:02]} 6. Nc3 {[%clk 0:02:55.7]} 6... a6 {[%clk 0:02:01.6]} 7. Be2
{[%clk 0:02:55.4]} 7... Bf5 {[%clk 0:01:56.6]} 8. g4 {[%clk 0:02:55.2]} 8... Bg6
{[%clk 0:01:56.3]} 9. h4 {[%clk 0:02:54.9]} 9... h5 {[%clk 0:01:55]} 10. g5
{[%clk 0:02:50.5]} 10... Ne4 {[%clk 0:01:55]} 11. Nxe4 {[%clk 0:02:48]} 11...
Bxe4 {[%clk 0:01:55]} 12. f3 {[%clk 0:02:48.2]} 12... Bg6 {[%clk 0:01:55]} 13.
Nh3 {[%clk 0:02:48.6]} 13... e6 {[%clk 0:01:55.1]} 14. Kf2 {[%clk 0:02:47.5]}
14... Bd6 {[%clk 0:01:52.4]} 15. Bxd6 {[%clk 0:02:42.7]} 15... Qxd6 {[%clk
0:01:53.3]} 16. Nf4 {[%clk 0:02:38.9]} 16... O-O {[%clk 0:01:52.9]} 17. Rc1
{[%clk 0:02:18.4]} 17... Rad8 {[%clk 0:01:51.9]} 18. Qd2 {[%clk 0:02:11.2]}
18... e5 {[%clk 0:01:50.3]} 19. dxe5 {[%clk 0:02:08.3]} 19... Qxe5 {[%clk
0:01:50]} 20. Rc5 {[%clk 0:02:00.4]} 20... Rfe8 {[%clk 0:01:43.3]} 21. Rd1
{[%clk 0:01:41.1]} 21... Qe7 {[%clk 0:01:39.8]} 22. Rxd5 {[%clk 0:01:40.2]}
22... Rxd5 {[%clk 0:01:39]} 23. Nxd5 {[%clk 0:01:41.1]} 23... Qc5 {[%clk
0:01:39.1]} 24. Qc3 {[%clk 0:01:38.7]} 24... Qa7 {[%clk 0:01:22.7]} 25. Nf4
{[%clk 0:01:36.4]} 25... Qb8 {[%clk 0:01:19.6]} 26. Bc4 {[%clk 0:01:30.1]} 26...
Ne5 {[%clk 0:01:19.1]} 27. Bd5 {[%clk 0:01:29.6]} 27... Rc8 {[%clk 0:01:10.9]}
28. Qb3 {[%clk 0:01:29.5]} 28... Bc2 {[%clk 0:01:07.8]} 29. Qb6 {[%clk
0:01:06.4]} 29... Bxd1 {[%clk 0:01:04.5]} 30. g6 {[%clk 0:01:06.9]} 30... Nd3+
{[%clk 0:00:57]} 31. Kg3 {[%clk 0:00:59.1]} 31... Nxf4 {[%clk 0:00:51.9]} 32.
Bxf7+ {[%clk 0:00:55.3]} 32... Kh8 {[%clk 0:00:44.9]} 33. exf4 {[%clk
0:00:55.3]} 33... Qc7 {[%clk 0:00:38.7]} 34. Qd4 {[%clk 0:00:52.9]} 34... Qc5
{[%clk 0:00:35.7]} 35. Qxd1 {[%clk 0:00:50.6]} 35... Qb6 {[%clk 0:00:20.5]} 36.
b3 {[%clk 0:00:43.8]} 36... Rd8 {[%clk 0:00:20.3]} 37. Qe1 {[%clk 0:00:43.3]}
37... Qd4 {[%clk 0:00:19.3]} 38. f5 {[%clk 0:00:34.3]} 38... Qd6+ {[%clk
0:00:18.2]} 39. Kh3 {[%clk 0:00:34.6]} 39... Qf4 {[%clk 0:00:17]} 40. Qe4 {[%clk
0:00:32.8]} 40... Qxe4 {[%clk 0:00:14.5]} 41. fxe4 {[%clk 0:00:32.7]} 41... Rd3+
{[%clk 0:00:14.3]} 42. Kg2 {[%clk 0:00:33]} 42... Rd2+ {[%clk 0:00:14.1]} 43.
Kf3 {[%clk 0:00:33.4]} 43... Rxa2 {[%clk 0:00:13.9]} 44. e5 {[%clk 0:00:33.9]}
44... Rh2 {[%clk 0:00:12.1]} 45. e6 {[%clk 0:00:32.5]} 45... Rh3+ {[%clk
0:00:12.5]} 46. Kf4 {[%clk 0:00:22.8]} 46... Rxh4+ {[%clk 0:00:12.5]} 47. Kg5
{[%clk 0:00:23.2]} 47... Re4 {[%clk 0:00:11.6]} 48. f6 {[%clk 0:00:23.5]} 48...
Re5+ {[%clk 0:00:10.6]} 49. Kf4 {[%clk 0:00:19.3]} 49... gxf6 {[%clk 0:00:11]}
50. Kg3 {[%clk 0:00:14.7]} 50... Kg7 {[%clk 0:00:11.1]} 51. Kh4 {[%clk 0:00:15]}
51... b5 {[%clk 0:00:10.7]} 0-1

[Event "*** Titled Tuesday Blitz"]
[Site "Chess.com"]
[Date "2020.05.12"]
[Round "1"]
[White "OK97"]
[Black "vanyakuba"]
[Result "1-0"]
[WhiteElo "2765"]
[BlackElo "2403"]
[TimeControl "180+1"]
[EndTime "10:07:56 PDT"]
[Termination "OK97 won on time"]

1. e4 {[%clk 0:03:00.9]} 1... d5 {[%clk 0:02:58.2]} 2. exd5 {[%clk 0:03:00.6]}
2... Qxd5 {[%clk 0:02:58.2]} 3. Nc3 {[%clk 0:03:00.7]} 3... Qa5 {[%clk
0:02:58.5]} 4. Bc4 {[%clk 0:03:00.6]} 4... Nf6 {[%clk 0:02:58.8]} 5. d3 {[%clk
0:03:00.9]} 5... Bg4 {[%clk 0:02:59.1]} 6. f3 {[%clk 0:02:57.9]} 6... Bd7 {[%clk
0:02:59.1]} 7. Bd2 {[%clk 0:02:53.6]} 7... Qb6 {[%clk 0:02:58.4]} 8. Qe2 {[%clk
0:02:44.9]} 8... e6 {[%clk 0:02:47.9]} 9. O-O-O {[%clk 0:02:39.1]} 9... Nc6
{[%clk 0:02:40.3]} 10. Be3 {[%clk 0:02:34.5]} 10... Nd4 {[%clk 0:02:38.8]} 11.
Qf2 {[%clk 0:02:23.6]} 11... c5 {[%clk 0:02:38.4]} 12. Nge2 {[%clk 0:02:16]}
12... Nxe2+ {[%clk 0:02:26.7]} 13. Qxe2 {[%clk 0:02:15.6]} 13... Qa5 {[%clk
0:02:03.6]} 14. Kb1 {[%clk 0:02:03]} 14... b5 {[%clk 0:02:01.4]} 15. Bb3 {[%clk
0:02:03.3]} 15... Be7 {[%clk 0:01:37.2]} 16. g4 {[%clk 0:01:58.1]} 16... b4
{[%clk 0:01:30]} 17. Ne4 {[%clk 0:01:51.7]} 17... Bc6 {[%clk 0:01:19.7]} 18. h4
{[%clk 0:01:18]} 18... Nd5 {[%clk 0:01:19.1]} 19. Bd2 {[%clk 0:01:13.2]} 19...
O-O-O {[%clk 0:01:09.7]} 20. Ng5 {[%clk 0:00:56.9]} 20... Be8 {[%clk 0:01:03.6]}
21. f4 {[%clk 0:00:54.3]} 21... h6 {[%clk 0:01:02.9]} 22. Nf3 {[%clk 0:00:54.3]}
22... Qc7 {[%clk 0:00:59.4]} 23. Ne5 {[%clk 0:00:53.3]} 23... a5 {[%clk
0:00:50.3]} 24. Rhe1 {[%clk 0:00:41.5]} 24... a4 {[%clk 0:00:49.7]} 25. Bc4
{[%clk 0:00:41.6]} 25... Kb8 {[%clk 0:00:49.2]} 26. h5 {[%clk 0:00:37.7]} 26...
Ka8 {[%clk 0:00:37.4]} 27. Ka1 {[%clk 0:00:37.2]} 27... Bf6 {[%clk 0:00:36.3]}
28. Qe4 {[%clk 0:00:27.8]} 28... Ka7 {[%clk 0:00:35]} 29. d4 {[%clk 0:00:22.8]}
29... Be7 {[%clk 0:00:23.6]} 30. f5 {[%clk 0:00:20]} 30... Nb6 {[%clk
0:00:19.8]} 31. dxc5 {[%clk 0:00:17.4]} 31... Bxc5 {[%clk 0:00:18.9]} 32. fxe6
{[%clk 0:00:16.3]} 32... fxe6 {[%clk 0:00:16.7]} 33. Bxe6 {[%clk 0:00:16.8]}
33... Bb5 {[%clk 0:00:16.3]} 34. Nf7 {[%clk 0:00:12.1]} 34... Rhe8 {[%clk
0:00:11.2]} 35. Nxd8 {[%clk 0:00:12.4]} 35... Rxd8 {[%clk 0:00:11.6]} 36. Bxb4
{[%clk 0:00:12.6]} 36... Bxb4 {[%clk 0:00:06.9]} 37. Qxb4 {[%clk 0:00:13.5]}
37... Rxd1+ {[%clk 0:00:04.5]} 38. Rxd1 {[%clk 0:00:14.4]} 38... Be8 {[%clk
0:00:02.5]} 39. Qa5+ {[%clk 0:00:13.5]} 39... Kb8 {[%clk 0:00:02.3]} 40. Bf5
{[%clk 0:00:11]} 40... Bc6 {[%clk 0:00:01.6]} 41. Qb4 {[%clk 0:00:11]} 41... Ka7
{[%clk 0:00:01.5]} 42. a3 {[%clk 0:00:11]} 1-0

[Event "*** Titled Tuesday Blitz"]
[Site "Chess.com"]
[Date "2020.05.12"]
[Round "1"]
[White "Drags95"]
[Black "Savva09022009"]
[Result "1-0"]
[WhiteElo "2742"]
[BlackElo "2390"]
[TimeControl "180+1"]
[EndTime "10:07:56 PDT"]
[Termination "Drags95 won by resignation"]

1. d4 {[%clk 0:03:00.9]} 1... Nf6 {[%clk 0:02:59.2]} 2. Nf3 {[%clk 0:03:00.7]}
2... e6 {[%clk 0:02:58.1]} 3. c4 {[%clk 0:03:00.7]} 3... d5 {[%clk 0:02:57.9]}
4. Nc3 {[%clk 0:02:58.7]} 4... c6 {[%clk 0:02:55.6]} 5. e3 {[%clk 0:02:57.7]}
5... Be7 {[%clk 0:02:54.8]} 6. Be2 {[%clk 0:02:58.2]} 6... O-O {[%clk
0:02:54.5]} 7. O-O {[%clk 0:02:58.7]} 7... Nbd7 {[%clk 0:02:54.6]} 8. b3 {[%clk
0:02:58.1]} 8... b6 {[%clk 0:02:54.6]} 9. Qc2 {[%clk 0:02:53.1]} 9... Bb7 {[%clk
0:02:54.5]} 10. Bb2 {[%clk 0:02:48.5]} 10... Re8 {[%clk 0:02:50.5]} 11. Rad1
{[%clk 0:02:44.1]} 11... Rc8 {[%clk 0:02:48.7]} 12. e4 {[%clk 0:02:24.6]} 12...
dxe4 {[%clk 0:02:46.6]} 13. Nxe4 {[%clk 0:02:25.5]} 13... Nxe4 {[%clk
0:02:47.2]} 14. Qxe4 {[%clk 0:02:24.6]} 14... Nf6 {[%clk 0:02:48.1]} 15. Qc2
{[%clk 0:02:20]} 15... Qc7 {[%clk 0:02:44.6]} 16. c5 {[%clk 0:02:00]} 16... b5
{[%clk 0:02:33.7]} 17. Ne5 {[%clk 0:01:56.2]} 17... Rcd8 {[%clk 0:02:30.5]} 18.
Bf3 {[%clk 0:01:55.6]} 18... Bf8 {[%clk 0:02:00.2]} 19. Rfe1 {[%clk 0:01:55]}
19... g6 {[%clk 0:01:59.2]} 20. Bc1 {[%clk 0:01:37.9]} 20... Bg7 {[%clk
0:01:58.6]} 21. Bf4 {[%clk 0:01:35]} 21... Qc8 {[%clk 0:01:49]} 22. Qc1 {[%clk
0:01:30.7]} 22... Nd7 {[%clk 0:01:39.1]} 23. Ng4 {[%clk 0:01:24.1]} 23... Rf8
{[%clk 0:01:12.7]} 24. Bd6 {[%clk 0:01:15.3]} 24... Nf6 {[%clk 0:01:08.2]} 25.
Nxf6+ {[%clk 0:01:05.8]} 25... Bxf6 {[%clk 0:01:09.1]} 26. Bxf8 {[%clk 0:01:06]}
26... Kxf8 {[%clk 0:01:07.6]} 27. Qf4 {[%clk 0:01:04.4]} 27... Bg7 {[%clk
0:01:05.1]} 28. h4 {[%clk 0:01:03.6]} 28... h5 {[%clk 0:00:58.8]} 29. Re4 {[%clk
0:00:58.4]} 29... Qd7 {[%clk 0:00:54.4]} 30. b4 {[%clk 0:00:57]} 30... Qe7
{[%clk 0:00:53.5]} 31. g3 {[%clk 0:00:54.7]} 31... Qf6 {[%clk 0:00:51]} 32. Qxf6
{[%clk 0:00:42.7]} 32... Bxf6 {[%clk 0:00:51.9]} 33. Rf4 {[%clk 0:00:38.2]}
33... Ke7 {[%clk 0:00:49.2]} 34. a4 {[%clk 0:00:34.9]} 34... bxa4 {[%clk
0:00:39.8]} 35. b5 {[%clk 0:00:33.8]} 35... Rc8 {[%clk 0:00:34.3]} 36. Ra1
{[%clk 0:00:28.8]} 36... Ba8 {[%clk 0:00:28.9]} 37. bxc6 {[%clk 0:00:27]} 37...
Bxc6 {[%clk 0:00:29.8]} 38. Bxc6 {[%clk 0:00:27.2]} 38... Rxc6 {[%clk
0:00:30.7]} 39. Rxa4 {[%clk 0:00:27.9]} 39... Rc7 {[%clk 0:00:29.9]} 40. Rf3
{[%clk 0:00:27.6]} 40... Bg7 {[%clk 0:00:26.4]} 41. Rb3 {[%clk 0:00:26.1]} 41...
Kd7 {[%clk 0:00:24.9]} 42. Kg2 {[%clk 0:00:26.4]} 42... Kc6 {[%clk 0:00:24.7]}
43. Kf3 {[%clk 0:00:26.6]} 43... Kd5 {[%clk 0:00:24.5]} 44. Ke3 {[%clk
0:00:25.6]} 44... e5 {[%clk 0:00:24.7]} 45. dxe5 {[%clk 0:00:24.2]} 45... Bxe5
{[%clk 0:00:25.6]} 46. Rb5 {[%clk 0:00:21.8]} 46... f5 {[%clk 0:00:19.1]} 47.
c6+ {[%clk 0:00:20]} 47... Kd6 {[%clk 0:00:17.1]} 48. Rba5 {[%clk 0:00:18.6]}
48... Re7 {[%clk 0:00:16.9]} 49. Kf3 {[%clk 0:00:16.5]} 49... Kxc6 {[%clk
0:00:16.2]} 50. Rxa7 {[%clk 0:00:15.8]} 50... Re6 {[%clk 0:00:11.3]} 51. R7a6+
{[%clk 0:00:08]} 51... Kd5 {[%clk 0:00:11.2]} 52. R4a5+ {[%clk 0:00:06.9]} 1-0

[Event "*** Titled Tuesday Blitz"]
[Site "Chess.com"]
[Date "2020.05.12"]
[Round "1"]
[White "vladimir_petrov"]
[Black "Nikolaj_6"]
[Result "1-0"]
[WhiteElo "2308"]
[BlackElo "2582"]
[TimeControl "180+1"]
[EndTime "10:07:57 PDT"]
[Termination "vladimir_petrov won by resignation"]

1. e4 {[%clk 0:03:00.5]} 1... c5 {[%clk 0:02:59.5]} 2. Nf3 {[%clk 0:03:00]} 2...
d6 {[%clk 0:02:59.7]} 3. d4 {[%clk 0:02:59.6]} 3... cxd4 {[%clk 0:02:59.7]} 4.
Nxd4 {[%clk 0:02:58.8]} 4... Nf6 {[%clk 0:02:59.7]} 5. Nc3 {[%clk 0:02:56.9]}
5... a6 {[%clk 0:02:59.5]} 6. Be3 {[%clk 0:02:56]} 6... e5 {[%clk 0:02:59.1]} 7.
Nb3 {[%clk 0:02:55.9]} 7... Be6 {[%clk 0:02:59.3]} 8. h3 {[%clk 0:02:55.8]} 8...
h5 {[%clk 0:02:58.4]} 9. f4 {[%clk 0:02:55.2]} 9... exf4 {[%clk 0:02:52.3]} 10.
Bxf4 {[%clk 0:02:56.1]} 10... Nc6 {[%clk 0:02:51.2]} 11. Qe2 {[%clk 0:02:54.1]}
11... h4 {[%clk 0:02:51.3]} 12. O-O-O {[%clk 0:02:50.5]} 12... Nh5 {[%clk
0:02:51.3]} 13. Bh2 {[%clk 0:02:36.9]} 13... Ng3 {[%clk 0:02:50]} 14. Bxg3
{[%clk 0:02:35.8]} 14... Qg5+ {[%clk 0:02:49.7]} 15. Kb1 {[%clk 0:02:26.2]}
15... Qxg3 {[%clk 0:02:49.6]} 16. Nd4 {[%clk 0:02:08.2]} 16... Nxd4 {[%clk
0:02:43.9]} 17. Rxd4 {[%clk 0:02:09.1]} 17... Be7 {[%clk 0:02:36.4]} 18. Nd5
{[%clk 0:02:08.5]} 18... Bd8 {[%clk 0:02:21.8]} 19. Rb4 {[%clk 0:01:45.3]} 19...
b5 {[%clk 0:02:18.5]} 20. c4 {[%clk 0:01:42]} 20... O-O {[%clk 0:02:12.1]} 21.
cxb5 {[%clk 0:01:31.6]} 21... Bxd5 {[%clk 0:02:05.2]} 22. exd5 {[%clk
0:01:29.1]} 22... axb5 {[%clk 0:02:05.3]} 23. Rg4 {[%clk 0:01:20.9]} 23... Qe5
{[%clk 0:01:53.2]} 24. Qxe5 {[%clk 0:01:18.2]} 24... dxe5 {[%clk 0:01:54.1]} 25.
Bxb5 {[%clk 0:01:17.5]} 25... f5 {[%clk 0:01:50.6]} 26. Rc4 {[%clk 0:01:13.6]}
26... e4 {[%clk 0:01:49.8]} 27. Bd7 {[%clk 0:01:11.5]} 27... g6 {[%clk
0:01:48.6]} 28. Be6+ {[%clk 0:01:10.7]} 28... Kg7 {[%clk 0:01:48.4]} 29. a4
{[%clk 0:01:06.1]} 29... Bf6 {[%clk 0:01:46.6]} 30. b3 {[%clk 0:01:01.3]} 30...
Rfb8 {[%clk 0:01:39.6]} 31. Ka2 {[%clk 0:00:58]} 31... Be5 {[%clk 0:01:39.6]}
32. Rhc1 {[%clk 0:00:51.5]} 32... Kf6 {[%clk 0:01:37.6]} 33. Rc6 {[%clk
0:00:47.6]} 33... Kg5 {[%clk 0:01:36.2]} 34. Bf7 {[%clk 0:00:47.4]} 34... Bf6
{[%clk 0:01:24.5]} 35. Re6 {[%clk 0:00:44.1]} 35... Rf8 {[%clk 0:01:22.3]} 36.
Rc7 {[%clk 0:00:34.9]} 36... Ra5 {[%clk 0:01:08.6]} 37. Ka3 {[%clk 0:00:31.4]}
37... Rxd5 {[%clk 0:00:57.6]} 38. Rxf6 {[%clk 0:00:30.8]} 38... Rd2 {[%clk
0:00:51.8]} 39. Rxg6+ {[%clk 0:00:30.2]} 39... Kf4 {[%clk 0:00:51.8]} 40. Bc4
{[%clk 0:00:29.5]} 40... e3 {[%clk 0:00:49.2]} 41. Re7 {[%clk 0:00:28.6]} 41...
Rf2 {[%clk 0:00:47.5]} 42. a5 {[%clk 0:00:27.8]} 42... Rd8 {[%clk 0:00:45.9]}
43. Rge6 {[%clk 0:00:26.2]} 43... Rxg2 {[%clk 0:00:45.3]} 44. Rxe3 {[%clk
0:00:26]} 44... Rdd2 {[%clk 0:00:45.4]} 45. a6 {[%clk 0:00:25.2]} 45... Ra2+
{[%clk 0:00:45.1]} 46. Kb4 {[%clk 0:00:25.5]} 46... Rg3 {[%clk 0:00:45.6]} 47.
R3e5 {[%clk 0:00:20.6]} 47... Rxh3 {[%clk 0:00:43.4]} 48. Ra5 {[%clk 0:00:19]}
48... Rxa5 {[%clk 0:00:41.1]} 49. Kxa5 {[%clk 0:00:19.9]} 49... Rh1 {[%clk
0:00:41.6]} 50. a7 {[%clk 0:00:19.2]} 50... Ra1+ {[%clk 0:00:41.6]} 51. Kb6
{[%clk 0:00:20.1]} 51... h3 {[%clk 0:00:42.1]} 52. Ba6 {[%clk 0:00:20.1]} 52...
h2 {[%clk 0:00:41]} 53. a8=Q {[%clk 0:00:20]} 53... h1=Q {[%clk 0:00:39.7]} 54.
Qxh1 {[%clk 0:00:18.5]} 54... Rxh1 {[%clk 0:00:40.6]} 55. b4 {[%clk 0:00:18.2]}
55... Kg3 {[%clk 0:00:38.9]} 56. Bb7 {[%clk 0:00:15.6]} 56... Rb1 {[%clk
0:00:38.2]} 57. b5 {[%clk 0:00:15]} 57... f4 {[%clk 0:00:38.5]} 58. Rf7 {[%clk
0:00:14.3]} 58... Rb3 {[%clk 0:00:38.1]} 59. Bc6 {[%clk 0:00:13.7]} 59... Rb2
{[%clk 0:00:33.2]} 60. Kc7 {[%clk 0:00:13.4]} 60... Rb3 {[%clk 0:00:31.3]} 61.
b6 {[%clk 0:00:13.5]} 61... f3 {[%clk 0:00:32.2]} 62. Rxf3+ {[%clk 0:00:13]} 1-0

[Event "*** Titled Tuesday Blitz"]
[Site "Chess.com"]
[Date "2020.05.12"]
[Round "1"]
[White "Gandrade2"]
[Black "Willychess95"]
[Result "1-0"]
[WhiteElo "2061"]
[BlackElo "2475"]
[TimeControl "180+1"]
[EndTime "10:07:57 PDT"]
[Termination "Gandrade2 won by resignation"]

1. b3 {[%clk 0:03:00.9]} 1... Nf6 {[%clk 0:02:56.7]} 2. Bb2 {[%clk 0:03:01.3]}
2... g6 {[%clk 0:02:56.9]} 3. Bxf6 {[%clk 0:03:01.2]} 3... exf6 {[%clk
0:02:56.5]} 4. c4 {[%clk 0:03:01.7]} 4... Bg7 {[%clk 0:02:54.9]} 5. Nc3 {[%clk
0:03:02.2]} 5... O-O {[%clk 0:02:52.8]} 6. g3 {[%clk 0:03:02.6]} 6... Nc6 {[%clk
0:02:44.1]} 7. Bg2 {[%clk 0:02:51]} 7... f5 {[%clk 0:02:44.1]} 8. Rc1 {[%clk
0:02:47.2]} 8... d6 {[%clk 0:02:43.9]} 9. e3 {[%clk 0:02:46.4]} 9... Rb8 {[%clk
0:02:42.3]} 10. d4 {[%clk 0:02:43.9]} 10... Re8 {[%clk 0:02:41.2]} 11. Nge2
{[%clk 0:02:44.1]} 11... f4 {[%clk 0:02:33.4]} 12. gxf4 {[%clk 0:02:35.7]} 12...
Bg4 {[%clk 0:02:30.2]} 13. O-O {[%clk 0:02:29.9]} 13... Qh4 {[%clk 0:02:23.9]}
14. Qe1 {[%clk 0:02:20.6]} 14... Qh5 {[%clk 0:02:03.2]} 15. Ng3 {[%clk
0:02:14.5]} 15... Qh4 {[%clk 0:01:58.7]} 16. Nd5 {[%clk 0:02:07.8]} 16... Nxd4
{[%clk 0:01:41.2]} 17. f3 {[%clk 0:01:06.4]} 17... Bh3 {[%clk 0:01:36.9]} 18.
Nxc7 {[%clk 0:00:55.2]} 18... Rec8 {[%clk 0:01:11.3]} 19. Nd5 {[%clk 0:00:50.6]}
19... Re8 {[%clk 0:01:11.6]} 20. Nc7 {[%clk 0:00:48.6]} 20... Rec8 {[%clk
0:01:06.8]} 21. Nd5 {[%clk 0:00:48.8]} 21... Nc6 {[%clk 0:01:07.3]} 22. Rd1
{[%clk 0:00:34.5]} 22... Bxg2 {[%clk 0:00:59.2]} 23. Kxg2 {[%clk 0:00:33.6]}
23... b5 {[%clk 0:00:55.8]} 24. Rc1 {[%clk 0:00:26.3]} 24... bxc4 {[%clk
0:00:49.6]} 25. Rxc4 {[%clk 0:00:27.2]} 25... Qd8 {[%clk 0:00:39.7]} 26. Qc1
{[%clk 0:00:23.8]} 26... h5 {[%clk 0:00:32.5]} 27. Ne4 {[%clk 0:00:23.1]} 27...
Na5 {[%clk 0:00:30.7]} 28. Rxc8 {[%clk 0:00:22.5]} 28... Rxc8 {[%clk 0:00:31.6]}
29. Qxc8 {[%clk 0:00:21.2]} 29... Qxc8 {[%clk 0:00:30.6]} 30. Ne7+ {[%clk
0:00:21.7]} 30... Kh7 {[%clk 0:00:30.9]} 31. Nxc8 {[%clk 0:00:22.2]} 31... f5
{[%clk 0:00:31.1]} 32. Nexd6 {[%clk 0:00:22.1]} 32... Nc6 {[%clk 0:00:31.3]} 33.
Rc1 {[%clk 0:00:21.3]} 33... Nb4 {[%clk 0:00:31.3]} 34. Nxa7 {[%clk 0:00:17.5]}
34... Nxa2 {[%clk 0:00:30.4]} 35. Rc7 {[%clk 0:00:18]} 35... Kh6 {[%clk
0:00:30.4]} 36. Ne8 {[%clk 0:00:18.4]} 36... Ba1 {[%clk 0:00:27]} 37. Nc6 {[%clk
0:00:17.5]} 37... g5 {[%clk 0:00:26.5]} 38. fxg5+ {[%clk 0:00:17.1]} 38... Kxg5
{[%clk 0:00:27.4]} 39. b4 {[%clk 0:00:17.5]} 39... f4 {[%clk 0:00:25.5]} 40.
exf4+ {[%clk 0:00:16.1]} 40... Kxf4 {[%clk 0:00:26.4]} 41. b5 {[%clk 0:00:16.5]}
41... Nc3 {[%clk 0:00:25.9]} 42. b6 {[%clk 0:00:16.5]} 42... Nd5 {[%clk
0:00:23.1]} 43. Rf7+ {[%clk 0:00:15.8]} 43... Ke3 {[%clk 0:00:22.1]} 44. b7
{[%clk 0:00:15.6]} 44... h4 {[%clk 0:00:08.2]} 45. b8=Q {[%clk 0:00:12.9]} 45...
h3+ {[%clk 0:00:09.1]} 46. Kxh3 {[%clk 0:00:12.6]} 1-0